Workbook

Sheet Sheet3
A1: 揭西县“6·30”活动捐赠资金分配表
E2: 单位：元 | F2: 日期：2024年1月31日
A3: 序号 | B3: 乡镇（街道） | C3: 监测对象慰问金（每户1000元） | E3: 脱贫人口数（截止2023年12月） | F3: 补助资金 | G3: 小计
C4: 户数 | D4: 补助资金 | U4: 按脱贫人口 | V4: 监测户补助 | W4: 额外补助
A5: 1 | B5: 上砂镇 | C5: 7 | D5: 7000 | E5: 1890 | F5: 62,000 | G5: =D5+F5 -> 69000 | H5: 1000 | I5: 27254 | J5: =E5/I5 -> 7% | K5: 886000 | L5: =J5*K5 -> 61441.99017 | Q5: =E5/R5 -> 0.07115428055 | R5: 26562 | S5: 874000 | T5: =Q5*S5 -> 62188.8412 | U5: 62000 | V5: =D5*C5 -> 49000 | X5: =U5+V5+W5 -> 111000
A6: 2 | B6: 五云镇 | C6: 2 | D6: 2000 | E6: 1741 | F6: 57,000 | G6: =D6+F6 -> 59000 | H6: 1000 | I6: 27254 | J6: =E6/I6 -> 6% | K6: 886000 | L6: =J6*K6 -> 56598.15073 | Q6: =E6/R6 -> 0.0655447632 | R6: 26562 | S6: 874000 | T6: =Q6*S6 -> 57286.12303 | U6: 57000 | V6: =D6*C6 -> 4000 | X6: =U6+V6+W6 -> 61000
A7: 3 | B7: 良田乡 | C7: 0 | D7: 0 | E7: 184 | F7: 6,000 | G7: 6000 | H7: 1000 | I7: 27254 | J7: 1% | K7: 886000 | L7: 5981.654069 | Q7: 0.006927189218 | R7: 26562 | S7: 874000 | T7: 6054.363376 | U7: 6000 | V7: 0 | X7: 6000
A8: 4 | B8: 坪上镇 | C8: 5 | D8: 5000 | E8: 1557 | F8: 51,000 | G8: 56000 | H8: 1000 | I8: 27254 | J8: 6% | K8: 886000 | L8: 50616.49666 | Q8: 0.05861757398 | R8: 26562 | S8: 874000 | T8: 51231.75966 | U8: 51000 | V8: 25000 | X8: 76000
A9: 5 | B9: 河婆街道 | C9: 4 | D9: 4000 | E9: 1085 | F9: 36,000 | G9: 40000 | H9: 1000 | I9: 27254 | J9: 4% | K9: 886000 | L9: 35272.25361 | Q9: 0.04084782772 | R9: 26562 | S9: 874000 | T9: 35701.00143 | U9: 36000 | V9: 16000 | X9: 52000
A10: 6 | B10: 龙潭镇 | C10: 1 | D10: 1000 | E10: 1141 | F10: 37,000 | G10: 38000 | H10: 1000 | I10: 27254 | J10: 4% | K10: 886000 | L10: 37092.75703 | Q10: 0.0429561027 | R10: 26562 | S10: 874000 | T10: 37543.63376 | U10: 37000 | V10: 1000 | X10: 38000
A11: 7 | B11: 南山镇 | C11: 3 | D11: 3000 | E11: 1119 | F11: 37,000 | G11: 40000 | H11: 1000 | I11: 27254 | J11: 4% | K11: 886000 | L11: 36377.55926 | Q11: 0.04212785182 | R11: 26562 | S11: 874000 | T11: 36819.74249 | U11: 37000 | V11: 9000 | X11: 46000
A12: 8 | B12: 灰寨镇 | C12: 2 | D12: 2000 | E12: 1051 | F12: 34,000 | G12: 36000 | H12: 1000 | I12: 27254 | J12: 4% | K12: 886000 | L12: 34166.94797 | Q12: 0.03956780363 | R12: 26562 | S12: 874000 | T12: 34582.26037 | U12: 34000 | V12: 4000 | X12: 38000
A13: 9 | B13: 京溪园镇 | C13: 4 | D13: 4000 | E13: 900 | F13: 30,000 | G13: 34000 | H13: 1000 | I13: 27254 | J13: 3% | K13: 886000 | L13: 29258.09056 | Q13: 0.03388299074 | R13: 26562 | S13: 874000 | T13: 29613.73391 | U13: 30000 | V13: 16000 | X13: 46000
A14: 10 | B14: 五经富镇 | C14: 2 | D14: 2000 | E14: 946 | F14: 31,000 | G14: 33000 | H14: 1000 | I14: 27254 | J14: 3% | K14: 886000 | L14: 30753.50407 | O14: =1065000 -> 1065000 | Q14: 0.03561478804 | R14: 26562 | S14: 874000 | T14: 31127.32475 | U14: 31000 | V14: 4000 | X14: 35000
A15: 11 | B15: 凤江镇 | C15: 1 | D15: 1000 | E15: 2483 | F15: 82,000 | G15: 83000 | H15: 1000 | I15: 27254 | J15: 9% | K15: 886000 | L15: 80719.82094 | O15: =D22 -> 46000 | Q15: 0.09347940667 | R15: 26562 | S15: 874000 | T15: 81701.00143 | U15: 82000 | V15: 1000 | X15: 83000
A16: 12 | B16: 金和镇 | C16: 1 | D16: 1000 | E16: 3006 | F16: 99,000 | G16: 100000 | H16: 1000 | I16: 27254 | J16: 11% | K16: 886000 | L16: 97722.02246 | O16: =O14-O15 -> 1019000 | Q16: 0.1131691891 | R16: 26562 | S16: 874000 | T16: 98909.87124 | U16: 99000 | V16: 1000 | X16: 100000
A17: 13 | B17: 钱坑镇 | C17: 0 | D17: 0 | E17: 1374 | F17: 45,000 | G17: 45000 | H17: 1000 | I17: 27254 | J17: 5% | K17: 886000 | L17: 44667.35158 | Q17: 0.05172803253 | R17: 26562 | S17: 874000 | T17: 45210.30043 | U17: 45000 | V17: 0 | X17: 45000
A18: 14 | B18: 大溪镇 | C18: 4 | D18: 4000 | E18: 1429 | F18: 47,000 | G18: 51000 | H18: 1000 | I18: 27254 | J18: 5% | K18: 886000 | L18: 46455.346 | Q18: 0.05379865974 | R18: 26562 | S18: 874000 | T18: 47020.02861 | U18: 47000 | V18: 16000 | X18: 63000
A19: 15 | B19: 塔头镇 | C19: 1 | D19: 1000 | E19: 2646 | F19: 87,000 | G19: 88000 | H19: 1000 | I19: 27254 | J19: 10% | K19: 886000 | L19: 86018.78623 | Q19: 0.09961599277 | R19: 26562 | S19: 874000 | T19: 87064.37768 | U19: 87000 | V19: 1000 | X19: 88000
A20: 16 | B20: 东园镇 | C20: 3 | D20: 3000 | E20: 2107 | F20: 70,000 | G20: 73000 | H20: 1000 | I20: 27254 | J20: 8% | K20: 886000 | L20: 68496.44089 | Q20: 0.0793238461 | R20: 26562 | S20: 874000 | T20: 69329.04149 | U20: 70000 | V20: 9000 | X20: 79000
A21: 17 | B21: 棉湖镇 | C21: 6 | D21: 6000 | E21: 1903 | F21: 63,000 | G21: 69000 | H21: 1000 | I21: 27254 | J21: 7% | K21: 886000 | L21: 61864.60703 | Q21: 0.07164370153 | R21: 26562 | S21: 874000 | T21: 62616.59514 | U21: 63000 | V21: 36000 | X21: 99000
A22: 18 | B22: 合计 | C22: =SUM(C5:C21) -> 46 | D22: 46000 | E22: 26562 | F22: 874000 | G22: 920000 | U22: =SUM(U5:U21) -> 874000 | V22: =SUM(V5:V21) -> 192000 | W22: =U22+V22 -> 1066000 | X22: =SUM(X5:X21) -> 1066000
A23: 注：监测对象按每户1000元标准发放慰问金，全县46户共安排资金4.6万元；剩余资金按照2023年12月底全县建档立卡脱贫人口因素法分配至各乡镇（街道）。 | V23: =890000-V22 -> 698000 | W23: =920000-W22 -> -146000
